lending/lending_fUSD_20250819
["ID","MTS","AMOUNT","RATE_DAILY","PERIOD"]
[380201555,1755607536901,500.0,0.00021917,120]
[380201556,1755607537028,500.0,0.00021917,120]
[380201557,1755607537210,500.0,0.00021917,120]
[380201558,1755607537439,500.0,0.00021917,120]
[380201559,1755607537587,419.5,0.00021917,120]
[380201560,1755607622977,3243.6,0.000221,120]
[380201624,1755607832439,-425.66,9.572e-05,2]
[380201625,1755607832450,-71.0439222,9.673e-05,2]
[380201626,1755607832463,-197.8860778,9.673e-05,2]
[380201627,1755607832473,-260.21399006,9.687e-05,2]
[380201628,1755607832509,-239.78600994,9.687e-05,2]
[380201629,1755607832520,-150.0,9.7e-05,2]
[380201630,1755607832530,-437.15414998,9.723e-05,2]
[380201631,1755607832568,-62.84585002,9.723e-05,2]
[380201632,1755607832581,-250.0,9.723e-05,2]
[380201633,1755607832592,-170.55,9.807e-05,2]
[380201635,1755607832602,-170.0,9.872e-05,7]
[380201637,1755607832612,-300.0,9.887e-05,2]
[380201639,1755607832623,-150.0,9.888e-05,2]
[380201641,1755607832633,-150.0,9.888e-05,2]
[380201643,1755607832644,-150.0,9.888e-05,2]
[380201644,1755607832654,-150.0,9.888e-05,2]
[380201646,1755607832664,-150.0,9.888e-05,2]
[380201648,1755607832674,-150.0,9.888e-05,2]
[380201650,1755607832684,-150.0,9.888e-05,2]
[380201651,1755607832694,-150.0,9.888e-05,2]
[380201652,1755607832704,-150.0,9.888e-05,2]
[380201653,1755607832713,-150.0,9.888e-05,2]
[380201654,1755607832723,-150.0,9.979e-05,2]
[380201655,1755607832733,-340.0,9.979e-05,2]
[380201656,1755607832743,-2218.02,9.979e-05,2]
[380201657,1755607832753,-5000.0,0.0001,2]
[380201658,1755607832763,-150.0,0.00010071,2]
[380201659,1755607832774,-150.0,0.00010071,2]
[380201660,1755607832784,-150.0,0.00010107,2]
[380201661,1755607832794,-150.0,0.00010151,2]
[380201662,1755607832804,-203.73,0.00010152,2]
[380201663,1755607832814,-201.68,0.00010152,2]
[380201664,1755607832824,-204.0,0.00010152,2]
[380201665,1755607832835,-201.74,0.00010152,2]
[380201666,1755607832845,-201.65,0.00010152,2]
[380201667,1755607832855,-200.69,0.00010152,2]
[380201668,1755607832864,-200.92,0.00010152,2]
[380201669,1755607832875,-202.5,0.00010152,2]
[380201670,1755607832886,-203.75,0.00010152,2]
[380201671,1755607832896,-203.93,0.00010152,2]
[380201672,1755607832906,-203.78,0.00010152,2]
[380201673,1755607832916,-203.15,0.00010152,2]
[380201674,1755607832927,-202.36,0.00010152,2]
[380201675,1755607832937,-200.54,0.00010152,2]
[380201676,1755607832947,-203.11,0.00010152,2]
[380201677,1755607832958,-200.16,0.00010152,2]
[380201678,1755607832969,-200.03,0.00010152,2]
[380201679,1755607832979,-200.44,0.00010153,2]
[380201680,1755607832990,-203.6,0.00010153,2]
[380201681,1755607833001,-201.34,0.00010153,2]
[380201682,1755607833012,-202.68,0.00010153,2]
[380201683,1755607833024,-200.08,0.00010153,2]
[380201684,1755607833035,-200.5,0.00010153,2]
[380201685,1755607833046,-202.19,0.00010153,2]
[380201686,1755607833057,-201.9,0.00010153,2]
[380201687,1755607833068,-203.15,0.00010153,2]
[380201688,1755607833080,-202.41,0.00010153,2]
[380201689,1755607833090,-201.42,0.00010153,2]
[380201690,1755607833101,-200.62,0.00010153,2]
[380201691,1755607833112,-202.93,0.00010153,2]
[380201692,1755607833126,-200.23,0.00010153,2]
[380201693,1755607833137,-200.51,0.00010153,2]
[380201694,1755607833148,-1000.0,0.00010153,2]
[380201695,1755607833158,-150.0,0.00010162,2]
[380201696,1755607833168,-150.0,0.00010162,2]
[380201697,1755607833179,-150.0,0.00010162,2]
[380201698,1755607833189,-204.2,0.00010166,2]
[380201699,1755607833199,-200.98,0.00010166,2]
[380201700,1755607833210,-202.0,0.00010166,2]
[380201701,1755607833220,-150.0,0.00010254,2]
[380201702,1755607833230,-150.0,0.00010254,2]
[380201703,1755607833240,-150.0,0.00010254,2]
[380201704,1755607833251,-150.0,0.00010254,2]
[380201705,1755607833262,-150.0,0.00010254,2]
[380201706,1755607833272,-150.0,0.00010327,2]
[380201707,1755607833282,-150.0,0.00010345,2]
[380201708,1755607833292,-150.0,0.00010437,2]
[380201709,1755607833302,-150.0,0.00010437,2]
[380201710,1755607833312,-150.0,0.00010437,2]
[380201711,1755607833322,-150.0,0.00010437,2]
[380201712,1755607833334,-150.0,0.00010437,2]
[380201713,1755607833344,-150.0,0.00010437,2]
[380201714,1755607833355,-530.84507388,0.00010494,2]
[380201715,1755607833366,-500.0,0.00010494,2]
[380201716,1755607833377,-200.64570925,0.00010494,2]
[380201717,1755607833387,-215.39727796,0.00010494,2]
[380201718,1755607833399,-8317.04024091,0.00010495,2]
[380201719,1755607833410,-160.0,0.00010495,2]
[380201720,1755607833419,-248.71531821,0.00010495,2]
[380201721,1755607833430,-500.0,0.00010495,2]
[380201722,1755607833440,-150.0,0.00010529,2]
[380201723,1755607833450,-500.0,0.0001053,2]
[380201724,1755607833461,-168.86726063,0.00010539,2]
[380201725,1755607833471,-150.0,0.00010547,2]
[380201726,1755607833482,-843.87140665,0.00010548,2]
[380201727,1755607833493,-200.72,0.00010548,2]
[380201728,1755607833507,-200.52,0.00010548,2]
[380201729,1755607833517,-203.22,0.00010548,2]
[380201730,1755607833527,-201.68,0.00010548,2]
[380201731,1755607833537,-203.0,0.00010548,2]
[380201732,1755607833549,-202.46,0.00010548,2]
[380201733,1755607833559,-203.56,0.00010548,2]
[380201734,1755607833570,-202.8,0.00010548,2]
[380201735,1755607833581,-200.62,0.00010548,2]
[380201736,1755607833592,-203.33,0.00010548,2]
[380201737,1755607833602,-202.98,0.00010548,2]
[380201738,1755607833612,-202.12,0.00010548,2]
[380201739,1755607833623,-202.31,0.00010548,2]
[380201740,1755607833634,-200.43,0.00010548,2]
[380201741,1755607833644,-212.02104404,0.00010549,2]
[380201742,1755607833655,-2000.0,0.00010549,2]
[380201743,1755607833665,-2000.0,0.00010549,2]
[380201744,1755607833675,-201.58,0.00010549,2]
[380201745,1755607833685,-202.4,0.00010549,2]
[380201746,1755607833695,-202.86,0.00010549,2]
[380201747,1755607833705,-202.82,0.00010549,2]
[380201748,1755607833716,-200.09,0.00010549,2]
[380201749,1755607833727,-200.87,0.00010549,2]
[380201750,1755607833738,-203.21,0.00010549,2]
[380201751,1755607833749,-8624.77072982,0.0001055,2]
[380201752,1755607833759,-6343.14407409,0.00010605,2]
[380201753,1755607833769,-150.0,0.0001062,2]
[380201754,1755607833780,-150.0,0.0001062,2]
[380201755,1755607833790,-150.0,0.0001062,2]
[380201756,1755607833800,-150.0,0.0001062,2]
[380201757,1755607833810,-150.0,0.0001062,2]
[380201758,1755607833821,-2000.0,0.00010641,2]
[380201759,1755607833833,-500.0,0.00010641,2]
[380201760,1755607833843,-300.0,0.00010641,2]
[380201761,1755607833855,-150.0,0.00010712,2]
[380201762,1755607833866,-150.0,0.00010712,2]
[380201763,1755607833877,-150.0,0.00010712,2]
[380201764,1755607833887,-150.0,0.00010767,2]
[380201765,1755607833897,-425.66,0.00010769,2]
[380201766,1755607833907,-150.0,0.00010803,2]
[380201767,1755607833918,-150.0,0.00010803,2]
[380201768,1755607833928,-420.0,0.00010875,2]
[380201769,1755607833939,-150.0,0.0001088,2]
[380201770,1755607833949,-1221.59035,0.0001089,2]
[380201771,1755607833959,-150.0,0.00010895,2]
[380201772,1755607833970,-57315.9349,0.000109,2]
[380201773,1755607833985,-1000.0,0.000109,2]
[380201774,1755607833995,-5000.0,0.000109,2]
[380201775,1755607834006,-317.22087118,0.000109,2]
[380201776,1755607834017,-226.72707991,0.000109,2]
[380201777,1755607834027,-337.46248468,0.000109,2]
[380201778,1755607834038,-159.98365758,0.000109,2]
[380201779,1755607834049,-324.56227665,0.00010912,2]
[380201780,1755607834060,-324.56227665,0.00010913,2]
[380201781,1755607834071,-324.56227665,0.00010945,2]
[380201782,1755607834082,-324.56227665,0.00010957,2]
[380201783,1755607834093,-715.12411861,0.00010968,2]
[380201784,1755607834103,-324.56227665,0.00010971,2]
[380201785,1755607834114,-201.36,0.00010973,2]
[380201786,1755607834124,-202.75,0.00010973,2]
[380201787,1755607834135,-202.62,0.00010973,2]
[380201788,1755607834145,-500.0,0.00010973,2]
[380201789,1755607834156,-500.0,0.00010973,2]
[380201790,1755607834166,-500.0,0.00010973,2]
[380201791,1755607834177,-500.0,0.00010973,2]
[380201792,1755607834188,-500.0,0.00010973,2]
[380201793,1755607834198,-500.0,0.00010973,2]
[380201794,1755607834208,-500.0,0.00010973,2]
[380201795,1755607834219,-324.56227665,0.00010983,2]
[380201796,1755607834229,-150.0,0.00010986,2]
[380201797,1755607834239,-150.0,0.00010986,2]
[380201798,1755607834250,-150.0,0.00010986,2]
[380201799,1755607834260,-150.0,0.00010986,2]
[380201800,1755607834271,-150.0,0.00010986,2]
[380201801,1755607834281,-150.0,0.00010986,2]
[380201802,1755607834291,-150.0,0.00010986,2]
[380201803,1755607834303,-150.0,0.00010986,2]
[380201804,1755607834313,-150.0,0.00010986,2]
[380201805,1755607834324,-150.0,0.00010986,2]
[380201806,1755607834336,-500.0,0.00010989,2]
[380201807,1755607834346,-458.43483364,0.00010998,2]
[380201808,1755607834535,-324.56227665,0.00010998,2]
[380201809,1755607834548,-3999.94,0.00010998,2]
[380201810,1755607834559,-811.21,0.00010999,2]
[380201811,1755607834571,-2000.0,0.00010999,2]
[380201812,1755607834585,-2000.0,0.00010999,2]
[380201813,1755607834595,-1542.0234412,0.00010999,2]
[380201814,1755607834605,-202.86,0.00011,2]
[380201815,1755607834615,-202.29,0.00011,2]
[380201816,1755607834627,-203.75,0.00011,2]
[380201817,1755607834638,-726793.42621617,0.00011,2]
[380201818,1755607834653,-258.87161287,0.00011,2]
[380201819,1755607834690,-847.35224231,0.00011,2]
[380201825,1755607837522,-2092.71075627,0.00011,2]
[380201826,1755607837628,-1186.3,0.00011,2]
[380201827,1755607837651,-1018.91627795,0.00011,2]
[380201828,1755607837746,-311.42415122,0.00011,2]
[380201829,1755607837757,-1904.96445524,0.00011,2]
[380201830,1755607837780,-353.92628948,0.00011,2]
[380201831,1755607837792,-1838.40765495,0.00011,2]
[380201832,1755607837803,-85165.78236686,0.00011,2]
[380201833,1755607837815,-142169.468,0.00011,2]
[380201834,1755607837827,-16104.0,0.00011,2]
[380201835,1755607837839,-10290.0,0.00011,2]
[380201836,1755607837850,-21075.73427775,0.00011,2]
[380201837,1755607837888,-8403588.54792849,0.00011,2]
[380201838,1755607837898,-19304.58,0.00011,2]
[380201840,1755607837908,-376277.0,0.00011,2]
[380201841,1755607837918,-159.0,0.00011,2]
[380201842,1755607837927,-159.0,0.00011,2]
[380201843,1755607837937,-159.0,0.00011,2]
[380201844,1755607837947,-1264811.21131818,0.00011,2]
[380201845,1755607837957,-7031.226856,0.00011,2]
[380201846,1755607837966,-414.649051,0.00011,2]
[380201847,1755607837975,-6859.552255,0.00011,2]
[380201848,1755607837985,-496.443959,0.00011,2]
[380201849,1755607837995,-348.04503,0.00011,2]
[380201850,1755607838005,-512.78314,0.00011,2]
[380201851,1755607838015,-1000.0,0.00011,2]
[380201853,1755607838024,-19132.475,0.0001105,2]
[380201855,1755607838034,-894.0,0.0001105,2]
[380201856,1755607838044,-505.0,0.00011067,2]
[380201858,1755607838053,-500.0,0.00011073,2]
[380201860,1755607838063,-150.0,0.00011088,2]
[380201862,1755607838073,-792.0044979,0.00011088,2]
[380201863,1755607838083,-1009.41749732,0.00011088,2]
[380201865,1755607838098,-1226.83049674,0.00011088,2]
[380201867,1755607838111,-1444.24349616,0.00011088,2]
[380201869,1755607838122,-1661.65649559,0.00011088,2]
[380201870,1755607838132,-1122.95,0.00011089,2]
[380201872,1755607838141,-1879.06949501,0.00011089,2]
[380201874,1755607838150,-2096.48249443,0.00011089,2]
[380201876,1755607838160,-2313.89549385,0.00011089,2]
[380201877,1755607838169,-2531.30849328,0.00011089,2]
[380201879,1755607838179,-1165436.69598489,0.00011099,2]
[380201881,1755607838189,-171.294028,0.00011099,2]
[380201883,1755607838198,-171.294028,0.00011099,2]
[380201885,1755607838207,-171.294028,0.00011099,2]
[380201886,1755607838218,-171.294028,0.00011099,2]
[380201888,1755607838227,-171.294028,0.00011099,2]
[380201890,1755607838237,-171.294028,0.00011099,2]
[380201892,1755607838246,-171.294028,0.00011099,2]
[380201893,1755607838256,-171.294028,0.00011099,2]
[380201895,1755607838266,-151.0,0.00011099,2]
[380201897,1755607838276,-151.0,0.00011099,2]
[380201899,1755607838285,-151.0,0.00011099,2]
[380201900,1755607838295,-151.0,0.00011099,2]
[380201902,1755607838304,-151.0,0.00011099,2]
[380201904,1755607838313,-153.398429,0.00011099,2]
[380201906,1755607838325,-151.0,0.00011099,2]
[380201908,1755607838341,-151.0,0.00011099,2]
[380201910,1755607838350,-151.0,0.00011099,2]
[380201911,1755607838359,-151.0,0.00011099,2]
[380201913,1755607838369,-151.0,0.00011099,2]
[380201915,1755607838378,-151.0,0.00011099,2]
[380201917,1755607838388,-151.0,0.00011099,2]
[380201919,1755607838398,-151.0,0.00011099,2]
[380201920,1755607838408,-151.0,0.00011099,2]
[380201922,1755607838417,-275.675,0.00011099,2]
[380201924,1755607838427,-151.0,0.00011099,2]
[380201926,1755607838436,-151.0,0.00011099,2]
[380201927,1755607838446,-151.0,0.00011099,2]
[380201929,1755607838456,-151.0,0.00011099,2]
[380201931,1755607838465,-151.0,0.00011099,2]
[380201933,1755607838474,-186.023308,0.00011099,2]
[380201935,1755607838484,-151.0,0.00011099,2]
[380201936,1755607838496,-295.609294,0.00011099,2]
[380201938,1755607838506,-273.139207,0.00011099,2]
[380201940,1755607838516,-151.0,0.00011099,2]
[380201942,1755607838526,-151.0,0.00011099,2]
[380201944,1755607838535,-151.0,0.00011099,2]
[380201946,1755607838546,-151.0,0.00011099,2]
[380201948,1755607838556,-151.0,0.00011099,2]
[380201949,1755607838566,-168.41258,0.00011099,2]
[380201951,1755607838577,-151.0,0.00011099,2]
[380201953,1755607838587,-151.0,0.00011099,2]
[380201955,1755607838597,-151.0,0.00011099,2]
[380201957,1755607838606,-151.0,0.00011099,2]
[380201959,1755607838617,-210.948579,0.00011099,2]
[380201960,1755607838626,-151.0,0.00011099,2]
[380201962,1755607838635,-151.0,0.00011099,2]
[380201964,1755607838644,-151.0,0.00011099,2]
[380201966,1755607838654,-338.965232,0.00011099,2]
[380201968,1755607838664,-338.965232,0.00011099,2]
[380201969,1755607838673,-338.965232,0.00011099,2]
[380201971,1755607838682,-151.0,0.00011099,2]
[380201973,1755607838692,-338.965232,0.00011099,2]
[380201975,1755607838701,-161.073559,0.00011099,2]
[380201977,1755607838711,-151.0,0.00011099,2]
[380201978,1755607838721,-151.0,0.00011099,2]
[380201991,1755607838830,-151.0,0.00011099,2]
[380201995,1755607838890,-420.500562,0.00011099,2]
[380201997,1755607838900,-420.500562,0.00011099,2]
[380201998,1755607838909,-420.500562,0.00011099,2]
[380202000,1755607838918,-151.0,0.00011099,2]
[380202002,1755607838927,-420.500562,0.00011099,2]
[380202004,1755607838937,-151.0,0.00011099,2]
[380202006,1755607838947,-740.135465,0.00011099,2]
[380202007,1755607838956,-740.135465,0.00011099,2]
[380202009,1755607838965,-740.135465,0.00011099,2]
[380202011,1755607838975,-740.135465,0.00011099,2]
[380202013,1755607838984,-151.0,0.00011099,2]
[380202015,1755607838994,-151.0,0.00011099,2]
[380202017,1755607839005,-151.0,0.00011099,2]
[380202018,1755607839014,-151.0,0.00011099,2]
[380202020,1755607839024,-151.0,0.00011099,2]
[380202022,1755607839033,-151.0,0.00011099,2]
[380202024,1755607839043,-174.002456,0.00011099,2]
[380202026,1755607839052,-174.002456,0.00011099,2]
[380202028,1755607839062,-174.002456,0.00011099,2]
[380202029,1755607839072,-174.002456,0.00011099,2]
[380202031,1755607839081,-174.002456,0.00011099,2]
[380202033,1755607839091,-174.002456,0.00011099,2]
[380202035,1755607839100,-174.002456,0.00011099,2]
[380202037,1755607839110,-151.0,0.00011099,2]
[380202039,1755607839120,-151.0,0.00011099,2]
[380202040,1755607839129,-151.0,0.00011099,2]
[380202042,1755607839139,-282.955078,0.00011099,2]
[380202044,1755607839148,-254.524922,0.00011099,2]
[380202046,1755607839158,-151.0,0.00011099,2]
[380202048,1755607839167,-254.524922,0.00011099,2]
[380202050,1755607839176,-151.0,0.00011099,2]
[380202051,1755607839184,-151.0,0.00011099,2]
[380202053,1755607839194,-151.0,0.00011099,2]
[380202055,1755607839202,-254.524922,0.00011099,2]
[380202057,1755607839212,-151.0,0.00011099,2]
[380202059,1755607839222,-254.524922,0.00011099,2]
[380202060,1755607839232,-777.435698,0.00011099,2]
[380202062,1755607839242,-151.0,0.00011099,2]
[380202064,1755607839252,-777.435698,0.00011099,2]
[380202066,1755607839261,-254.524922,0.00011099,2]
[380202068,1755607839271,-254.524922,0.00011099,2]
[380202070,1755607839281,-777.435698,0.00011099,2]
[380202072,1755607839292,-777.435698,0.00011099,2]
[380202073,1755607839302,-254.524922,0.00011099,2]
[380202075,1755607839312,-254.524922,0.00011099,2]
[380202077,1755607839323,-777.435698,0.00011099,2]
[380202079,1755607839334,-777.435698,0.00011099,2]
[380202081,1755607839345,-777.435698,0.00011099,2]
[380202083,1755607839355,-777.435698,0.00011099,2]
[380202085,1755607839365,-151.0,0.00011099,2]
[380202087,1755607839375,-256.594025,0.00011099,2]
[380202089,1755607839384,-151.0,0.00011099,2]
[380202091,1755607839395,-151.0,0.00011099,2]
[380202093,1755607839404,-151.408461,0.00011099,2]
[380202095,1755607839414,-151.0,0.00011099,2]
[380202097,1755607839423,-151.0,0.00011099,2]
[380202099,1755607839437,-151.0,0.00011099,2]
[380202101,1755607839447,-151.0,0.00011099,2]
[380202103,1755607839457,-151.0,0.00011099,2]
[380202104,1755607839467,-151.0,0.00011099,2]
[380202105,1755607839476,-151.612085,0.00011099,2]
[380202106,1755607839485,-151.712721,0.00011099,2]
[380202107,1755607839496,-151.0,0.00011099,2]
[380202108,1755607839506,-151.0,0.00011099,2]
[380202109,1755607839515,-151.0,0.00011099,2]
[380202110,1755607839525,-151.0,0.00011099,2]
[380202111,1755607839535,-151.0,0.00011099,2]
[380202112,1755607839544,-151.0,0.00011099,2]
[380202113,1755607839553,-151.0,0.00011099,2]
[380202114,1755607839564,-151.0,0.00011099,2]
[380202115,1755607839578,-207.392512,0.00011099,2]
[380202116,1755607839588,-151.0,0.00011099,2]
[380202117,1755607839597,-151.0,0.00011099,2]
[380202118,1755607839606,-151.0,0.00011099,2]
[380202119,1755607839615,-153.061572,0.00011099,2]
[380202120,1755607839625,-151.0,0.00011099,2]
[380202121,1755607839634,-160.289918,0.00011099,2]
[380202122,1755607839644,-500.988827,0.00011099,2]
[380202123,1755607839654,-500.988827,0.00011099,2]
[380202124,1755607839664,-500.988827,0.00011099,2]
[380202125,1755607839673,-500.988827,0.00011099,2]
[380202126,1755607839683,-500.988827,0.00011099,2]
[380202127,1755607839692,-500.988827,0.00011099,2]
[380202128,1755607839703,-500.988827,0.00011099,2]
[380202130,1755607839714,-500.988827,0.00011099,2]
[380202132,1755607839723,-151.0,0.00011099,2]
[380202134,1755607839734,-180.732138,0.00011099,2]
[380202136,1755607839749,-151.0,0.00011099,2]
[380202138,1755607839760,-151.0,0.00011099,2]
[380202141,1755607839770,-151.0,0.00011099,2]
[380202143,1755607839781,-208.251136,0.00011099,2]
[380202145,1755607839791,-151.0,0.00011099,2]
[380202147,1755607839802,-151.0,0.00011099,2]
[380202149,1755607839812,-151.0,0.00011099,2]
[380202151,1755607839823,-152.901531,0.00011099,2]
[380202153,1755607839834,-151.0,0.00011099,2]
[380202155,1755607839844,-151.0,0.00011099,2]
[380202157,1755607839854,-151.0,0.00011099,2]
[380202159,1755607839865,-151.0,0.00011099,2]
[380202161,1755607839874,-151.0,0.00011099,2]
[380202164,1755607839884,-151.0,0.00011099,2]
[380202166,1755607839894,-151.0,0.00011099,2]
[380202168,1755607839904,-151.0,0.00011099,2]
[380202170,1755607839918,-151.0,0.00011099,2]
[380202172,1755607839928,-151.0,0.00011099,2]
[380202174,1755607839938,-151.0,0.00011099,2]
[380202176,1755607839948,-151.0,0.00011099,2]
[380202178,1755607839958,-236.208573,0.00011099,2]
[380202180,1755607839968,-151.0,0.00011099,2]
[380202183,1755607839978,-151.0,0.00011099,2]
[380202185,1755607839990,-151.0,0.00011099,2]
[380202187,1755607840000,-255.0,0.00011156,2]
[380202189,1755607840010,-1406.60489614,0.00011171,2]
[380202191,1755607840021,-1009.0,0.000112,2]
[380202193,1755607840031,-869.61705204,0.00011247,2]
[380202195,1755607840041,-150.0,0.00011267,2]
[380202197,1755607840051,-159.58158746,0.00011267,2]
[380202199,1755607840060,-150.0,0.00011267,2]
[380202201,1755607840070,-516.0,0.00011267,2]
[380202203,1755607840081,-500.0,0.00011267,2]
[380202205,1755607840091,-500.0,0.00011267,2]
[380202208,1755607840101,-1120.0,0.00011267,2]
[380202210,1755607840111,-811.21,0.00011273,2]
[380202212,1755607840121,-226.7270799,0.00011333,2]
[380202214,1755607840131,-664.48759113,0.00011374,2]
[380202216,1755607840142,-257.9368248,0.00011392,2]
[380202218,1755607840152,-2531.9246395,0.00011392,2]
[380202220,1755607840163,-321.9136618,0.00011392,2]
[380202222,1755607840173,-350.0,0.00011396,2]
[380202224,1755607840183,-203.03,0.000114,2]
[380202226,1755607840193,-202.6,0.000114,2]
[380202228,1755607840203,-150.0,0.000114,2]
[380202231,1755607840213,-1000.0,0.00011422,2]
[380202233,1755607840222,-204.2,0.00011436,2]
[380202235,1755607840232,-10000.0,0.0001145,2]
[380202237,1755607840243,-500.0,0.00011499,2]
[380202239,1755607840253,-500.0,0.00011499,2]
[380202241,1755607840263,-500.0,0.00011499,2]
[380202243,1755607840273,-500.0,0.00011499,2]
[380202245,1755607840283,-500.0,0.00011499,2]
[380202247,1755607840293,-500.0,0.00011499,2]
[380202249,1755607840303,-500.0,0.00011499,2]
[380202251,1755607840313,-500.0,0.00011499,2]
[380202253,1755607840323,-500.0,0.00011499,2]
[380202256,1755607840333,-500.0,0.00011499,2]
[380202258,1755607840343,-500.0,0.00011499,2]
[380202260,1755607840352,-500.0,0.00011499,2]
[380202262,1755607840362,-500.0,0.00011499,2]
[380202264,1755607840371,-500.0,0.00011499,2]
[380202266,1755607840382,-500.0,0.00011499,2]
[380202268,1755607840392,-500.0,0.00011499,2]
[380202270,1755607840402,-500.0,0.00011499,2]
[380202272,1755607840412,-500.0,0.00011499,2]
[380202274,1755607840422,-500.0,0.00011499,2]
[380202276,1755607840432,-500.0,0.00011499,2]
[380202278,1755607840442,-500.57,0.00011499,2]
[380202280,1755607840452,-500.0,0.00011499,2]
[380202283,1755607840462,-500.0,0.00011499,2]
[380202285,1755607840472,-500.0,0.00011499,2]
[380202287,1755607840483,-500.0,0.00011499,2]
[380202289,1755607840494,-500.0,0.00011499,2]
[380202291,1755607840506,-500.0,0.00011499,2]
[380202293,1755607840516,-500.0,0.00011499,2]
[380202295,1755607840526,-500.0,0.00011499,2]
[380202297,1755607840537,-500.0,0.00011499,2]
[380202299,1755607840547,-500.0,0.00011499,2]
[380202301,1755607840557,-500.0,0.00011499,2]
[380202303,1755607840568,-500.0,0.00011499,2]
[380202305,1755607840578,-345.19,0.00011499,2]
[380202308,1755607840590,-500.0,0.00011499,2]
[380202310,1755607840599,-1000.0,0.000115,2]
[380202312,1755607840609,-1000.0,0.000115,2]
[380202314,1755607840619,-15500.50149071,0.000115,2]
[380202316,1755607840629,-2751.0,0.00011507,2]
[380202318,1755607840639,-1000.0,0.00011521,2]
[380202320,1755607840649,-500.0,0.00011521,2]
[380202322,1755607840659,-1000.0,0.00011521,2]
[380202324,1755607840670,-500.0,0.00011521,2]
[380202326,1755607840679,-500.0,0.00011534,2]
[380202328,1755607840690,-500.0,0.00011534,2]
[380202330,1755607840700,-500.0,0.00011534,2]
[380202332,1755607840710,-500.0,0.00011534,2]
[380202334,1755607840719,-500.0,0.00011534,2]
[380202337,1755607840730,-500.0,0.00011534,2]
[380202338,1755607840739,-500.0,0.00011534,2]
[380202340,1755607840747,-500.0,0.00011534,2]
[380202342,1755607840756,-500.0,0.00011534,2]
[380202344,1755607840765,-500.0,0.00011534,2]
[380202346,1755607840774,-500.0,0.00011534,2]
[380202348,1755607840783,-500.0,0.00011534,2]
[380202350,1755607840792,-500.0,0.00011534,2]
[380202353,1755607840802,-500.0,0.00011534,2]
[380202355,1755607840811,-623.26280908,0.00011534,2]
[380202357,1755607840820,-167.15821727,0.00011541,2]
[380202359,1755607840829,-157.91791004,0.00011541,2]
[380202361,1755607840840,-516.0,0.00011541,2]
[380202363,1755607840850,-500.0,0.00011541,2]
[380202365,1755607840860,-500.0,0.00011541,2]
[380202367,1755607840870,-1120.0,0.00011541,2]
[380202369,1755607840880,-811.21,0.00011547,2]
[380202371,1755607840890,-10000.0,0.0001155,2]
[380202373,1755607840900,-1000.0,0.00011621,2]
[380202375,1755607840910,-217.94026462,0.00011674,2]
[380202377,1755607840920,-226.7270799,0.00011767,2]
[380202379,1755607840930,-516.0,0.00011815,2]
[380202382,1755607840941,-500.0,0.00011815,2]
[380202384,1755607840951,-500.0,0.00011815,2]
[380202386,1755607840961,-1120.0,0.00011815,2]